[Event "*** Titled Tuesday Blitz"]
[Site "Chess.com"]
[Date "2020.04.07"]
[Round "2"]
[White "Usurpov"]
[Black "PetrolulSah"]
[Result "1-0"]
[WhiteElo "2476"]
[BlackElo "2238"]
[TimeControl "180+1"]
[EndTime "13:19:53 PDT"]
[Termination "Usurpov won on time"]

1. e4 {[%clk 0:03:00.9]} 1... e5 {[%clk 0:02:59.6]} 2. Nf3 {[%clk 0:03:00.8]}
2... Nf6 {[%clk 0:03:00.1]} 3. Nc3 {[%clk 0:03:01.2]} 3... Bb4 {[%clk
0:02:58.9]} 4. Nxe5 {[%clk 0:03:01]} 4... O-O {[%clk 0:02:58.8]} 5. Be2 {[%clk
0:02:59.9]} 5... Re8 {[%clk 0:02:57]} 6. Nd3 {[%clk 0:02:59.5]} 6... Bxc3 {[%clk
0:02:57.2]} 7. dxc3 {[%clk 0:03:00.4]} 7... Nxe4 {[%clk 0:02:56.9]} 8. Nf4
{[%clk 0:03:00.3]} 8... d6 {[%clk 0:02:54.8]} 9. O-O {[%clk 0:02:59.5]} 9... Nd7
{[%clk 0:02:54.4]} 10. c4 {[%clk 0:02:58.3]} 10... Ne5 {[%clk 0:02:53.7]} 11.
Re1 {[%clk 0:02:54.6]} 11... Nc5 {[%clk 0:02:50.3]} 12. Bf1 {[%clk 0:02:48.5]}
12... Ne6 {[%clk 0:02:47.8]} 13. Nd5 {[%clk 0:02:40.1]} 13... b6 {[%clk
0:02:39.9]} 14. b3 {[%clk 0:02:35.7]} 14... Bb7 {[%clk 0:02:39.1]} 15. Bb2
{[%clk 0:02:35.2]} 15... f6 {[%clk 0:02:37.9]} 16. f4 {[%clk 0:02:29.3]} 16...
Nc6 {[%clk 0:02:32.6]} 17. g3 {[%clk 0:02:25.1]} 17... a5 {[%clk 0:02:26.3]} 18.
a3 {[%clk 0:02:15.6]} 18... Rc8 {[%clk 0:01:54.8]} 19. Bd3 {[%clk 0:02:12.9]}
19... Nc5 {[%clk 0:01:46.9]} 20. Bf5 {[%clk 0:01:51.9]} 20... Rxe1+ {[%clk
0:01:44.3]} 21. Qxe1 {[%clk 0:01:51.5]} 21... Ra8 {[%clk 0:01:37.4]} 22. Qe2
{[%clk 0:01:41.8]} 22... Qe8 {[%clk 0:01:29.9]} 23. Qxe8+ {[%clk 0:01:32]} 23...
Rxe8 {[%clk 0:01:29.6]} 24. Nxc7 {[%clk 0:01:30.5]} 24... Re2 {[%clk 0:01:28.9]}
25. Rd1 {[%clk 0:01:03.9]} 25... Ne7 {[%clk 0:01:25.5]} 26. Bh3 {[%clk
0:00:31.2]} 26... Rxc2 {[%clk 0:01:25.1]} 27. Bd4 {[%clk 0:00:25.5]} 27... f5
{[%clk 0:01:03.6]} 28. Nb5 {[%clk 0:00:19.9]} 28... Ne4 {[%clk 0:00:59.7]} 29.
Bf1 {[%clk 0:00:14.8]} 29... d5 {[%clk 0:00:57.5]} 30. Bxb6 {[%clk 0:00:09.5]}
30... Nd2 {[%clk 0:00:48.5]} 31. Nd4 {[%clk 0:00:08]} 31... Rb2 {[%clk
0:00:44.3]} 32. Bg2 {[%clk 0:00:07.7]} 32... dxc4 {[%clk 0:00:41.1]} 33. Bxa5
{[%clk 0:00:06.9]} 33... Bxg2 {[%clk 0:00:21.1]} 34. Rxd2 {[%clk 0:00:05.4]}
34... Rxd2 {[%clk 0:00:18.3]} 35. Bxd2 {[%clk 0:00:06.3]} 35... cxb3 {[%clk
0:00:18.2]} 36. Nxb3 {[%clk 0:00:05.1]} 36... Bd5 {[%clk 0:00:17.4]} 37. Nd4
{[%clk 0:00:04.7]} 37... g6 {[%clk 0:00:16.3]} 38. Bb4 {[%clk 0:00:04.7]} 38...
Nc6 {[%clk 0:00:16.1]} 39. Ne2 {[%clk 0:00:03.9]} 39... Bc4 {[%clk 0:00:15]} 40.
Nc3 {[%clk 0:00:02.9]} 40... Kf7 {[%clk 0:00:12.2]} 41. Kf2 {[%clk 0:00:03.4]}
41... Ke6 {[%clk 0:00:11.2]} 42. Ke3 {[%clk 0:00:03.9]} 42... Ba6 {[%clk
0:00:11.1]} 43. Na4 {[%clk 0:00:03.9]} 43... Bb5 {[%clk 0:00:10.1]} 44. Nc3
{[%clk 0:00:03.6]} 44... Ba6 {[%clk 0:00:09.3]} 45. Nd1 {[%clk 0:00:04]} 45...
Kd5 {[%clk 0:00:08.7]} 46. Nf2 {[%clk 0:00:03.3]} 46... Kc4 {[%clk 0:00:08.5]}
47. Nh3 {[%clk 0:00:03.5]} 47... h6 {[%clk 0:00:04.1]} 48. Bf8 {[%clk
0:00:03.6]} 48... h5 {[%clk 0:00:02.8]} 49. Ng5 {[%clk 0:00:03.9]} 1-0

[Event "*** Titled Tuesday Blitz"]
[Site "Chess.com"]
[Date "2020.04.07"]
[Round "2"]
[White "Bigfish1995"]
[Black "DryCounty"]
[Result "1-0"]
[WhiteElo "2967"]
[BlackElo "2600"]
[TimeControl "180+1"]
[EndTime "13:19:56 PDT"]
[Termination "Bigfish1995 won on time"]

1. d4 {[%clk 0:02:58]} 1... Nf6 {[%clk 0:02:59.2]} 2. Bg5 {[%clk 0:02:57]} 2...
Ne4 {[%clk 0:02:58.6]} 3. Bf4 {[%clk 0:02:56.2]} 3... c5 {[%clk 0:02:58]} 4. f3
{[%clk 0:02:54.9]} 4... Qa5+ {[%clk 0:02:57.3]} 5. c3 {[%clk 0:02:52.3]} 5...
Nf6 {[%clk 0:02:53.1]} 6. d5 {[%clk 0:02:52.3]} 6... Qb6 {[%clk 0:02:48.1]} 7.
Bc1 {[%clk 0:02:51.9]} 7... e6 {[%clk 0:02:40.9]} 8. e4 {[%clk 0:02:44]} 8... c4
{[%clk 0:02:39.3]} 9. Bxc4 {[%clk 0:02:39.4]} 9... Bc5 {[%clk 0:02:39]} 10. Ne2
{[%clk 0:02:23.3]} 10... exd5 {[%clk 0:02:33]} 11. exd5 {[%clk 0:02:22.6]} 11...
O-O {[%clk 0:02:32.4]} 12. a4 {[%clk 0:02:00.7]} 12... a5 {[%clk 0:02:20.7]} 13.
Na3 {[%clk 0:01:54.2]} 13... d6 {[%clk 0:02:17.7]} 14. Nb5 {[%clk 0:01:52.6]}
14... Nbd7 {[%clk 0:02:04.2]} 15. Ned4 {[%clk 0:01:36.6]} 15... Ne5 {[%clk
0:01:57.6]} 16. Bb3 {[%clk 0:01:33.8]} 16... Bd7 {[%clk 0:01:42.1]} 17. Be3
{[%clk 0:01:10.3]} 17... Neg4 {[%clk 0:01:10.4]} 18. Bg1 {[%clk 0:01:00.5]}
18... Rfe8+ {[%clk 0:01:08.5]} 19. Kd2 {[%clk 0:01:00.5]} 19... Ne5 {[%clk
0:00:41.7]} 20. Qf1 {[%clk 0:01:00]} 20... Rac8 {[%clk 0:00:37.9]} 21. h3 {[%clk
0:00:47.1]} 21... Nh5 {[%clk 0:00:33.1]} 22. Bf2 {[%clk 0:00:37.1]} 22... Qd8
{[%clk 0:00:31.7]} 23. h4 {[%clk 0:00:28.7]} 23... Qf6 {[%clk 0:00:29.8]} 24.
Re1 {[%clk 0:00:27.8]} 24... Qh6+ {[%clk 0:00:24.6]} 25. Be3 {[%clk 0:00:24.8]}
25... Qg6 {[%clk 0:00:21.6]} 26. Bc2 {[%clk 0:00:18.1]} 26... Ng3 {[%clk
0:00:18.1]} 27. Bxg6 {[%clk 0:00:14.3]} 27... Nxf1+ {[%clk 0:00:17.7]} 28. Rhxf1
{[%clk 0:00:14.2]} 28... Nc4+ {[%clk 0:00:14.5]} 29. Kd3 {[%clk 0:00:14.7]}
29... Nxb2+ {[%clk 0:00:13.1]} 30. Kc2 {[%clk 0:00:15.1]} 30... Nc4 {[%clk
0:00:13.2]} 31. Bxh7+ {[%clk 0:00:15.3]} 31... Kxh7 {[%clk 0:00:12.9]} 32. Bc1
{[%clk 0:00:16.2]} 32... Ne5 {[%clk 0:00:09]} 33. Kb3 {[%clk 0:00:15.4]} 33...
Bxd4 {[%clk 0:00:06.4]} 34. cxd4 {[%clk 0:00:13.2]} 34... Nd3 {[%clk 0:00:05]}
35. Rxe8 {[%clk 0:00:12.9]} 35... Bxe8 {[%clk 0:00:05.2]} 36. Bd2 {[%clk
0:00:09.1]} 36... Bxb5 {[%clk 0:00:05.1]} 37. axb5 {[%clk 0:00:09.5]} 37... Re8
{[%clk 0:00:02.9]} 38. Bxa5 {[%clk 0:00:08.1]} 38... Re2 {[%clk 0:00:02.1]} 39.
g4 {[%clk 0:00:07.3]} 39... Nf4 {[%clk 0:00:01.9]} 40. Bc7 {[%clk 0:00:07.1]}
40... Nxd5 {[%clk 0:00:01.5]} 41. Bxd6 {[%clk 0:00:07.2]} 41... Re3+ {[%clk
0:00:01.5]} 42. Kc4 {[%clk 0:00:07.7]} 42... Nf6 {[%clk 0:00:01.7]} 43. Be5
{[%clk 0:00:07.9]} 1-0

[Event "*** Titled Tuesday Blitz"]
[Site "Chess.com"]
[Date "2020.04.07"]
[Round "2"]
[White "LADIESGET2KNOWME"]
[Black "Trickov"]
[Result "0-1"]
[WhiteElo "2452"]
[BlackElo "2236"]
[TimeControl "180+1"]
[EndTime "13:19:56 PDT"]
[Termination "Trickov won by checkmate"]

1. d4 {[%clk 0:03:00.9]} 1... d5 {[%clk 0:02:55.3]} 2. Nc3 {[%clk 0:03:00.4]}
2... Nf6 {[%clk 0:02:54.5]} 3. Bg5 {[%clk 0:02:59.3]} 3... Bf5 {[%clk
0:02:52.3]} 4. f3 {[%clk 0:02:59]} 4... Nbd7 {[%clk 0:02:52.1]} 5. Nxd5 {[%clk
0:02:58.7]} 5... Nxd5 {[%clk 0:02:50]} 6. e4 {[%clk 0:02:59.1]} 6... h6 {[%clk
0:02:48.1]} 7. Bh4 {[%clk 0:02:58.2]} 7... Bxe4 {[%clk 0:02:35.1]} 8. fxe4
{[%clk 0:02:57.4]} 8... Nf4 {[%clk 0:02:35.7]} 9. Qd2 {[%clk 0:02:47.2]} 9...
Ng6 {[%clk 0:02:34.1]} 10. Bg3 {[%clk 0:02:45.4]} 10... e6 {[%clk 0:02:33.9]}
11. Nf3 {[%clk 0:02:45.2]} 11... Bd6 {[%clk 0:02:28.5]} 12. e5 {[%clk
0:02:45.1]} 12... Be7 {[%clk 0:02:28.6]} 13. Bd3 {[%clk 0:02:45.5]} 13... Nh4
{[%clk 0:02:26.7]} 14. O-O {[%clk 0:02:40.4]} 14... O-O {[%clk 0:02:21.7]} 15.
Qe2 {[%clk 0:02:29.9]} 15... Nf5 {[%clk 0:02:17.8]} 16. Bf2 {[%clk 0:01:42.1]}
16... c6 {[%clk 0:02:11.8]} 17. c3 {[%clk 0:01:34.7]} 17... g6 {[%clk
0:01:54.7]} 18. Qd2 {[%clk 0:01:23.8]} 18... Kh7 {[%clk 0:01:49.5]} 19. Rae1
{[%clk 0:01:21.7]} 19... Re8 {[%clk 0:01:37.1]} 20. g4 {[%clk 0:01:19.1]} 20...
Ng7 {[%clk 0:01:33.7]} 21. h4 {[%clk 0:01:18.9]} 21... Rg8 {[%clk 0:01:17.9]}
22. Be3 {[%clk 0:01:12.9]} 22... h5 {[%clk 0:01:13.1]} 23. Ng5+ {[%clk
0:01:10.9]} 23... Bxg5 {[%clk 0:01:09.9]} 24. Bxg5 {[%clk 0:01:11.8]} 24... Qe8
{[%clk 0:01:09]} 25. Qe2 {[%clk 0:00:57.4]} 25... hxg4 {[%clk 0:01:03.3]} 26.
Qxg4 {[%clk 0:00:58.3]} 26... Nf5 {[%clk 0:01:01.8]} 27. Re2 {[%clk 0:00:50.3]}
27... Rd8 {[%clk 0:00:57.2]} 28. Rh2 {[%clk 0:00:46]} 28... Nxe5 {[%clk
0:00:52.7]} 29. dxe5 {[%clk 0:00:39.8]} 29... Rxd3 {[%clk 0:00:52]} 30. Bf4
{[%clk 0:00:33.9]} 30... Qd8 {[%clk 0:00:33.4]} 31. Bc1 {[%clk 0:00:25.9]} 31...
Rg3+ {[%clk 0:00:30.5]} 32. Qxg3 {[%clk 0:00:24.2]} 32... Nxg3 {[%clk
0:00:29.8]} 33. Rxf7+ {[%clk 0:00:25.1]} 33... Kh8 {[%clk 0:00:25.7]} 34. Kg2
{[%clk 0:00:20]} 34... Nh5 {[%clk 0:00:19.7]} 35. Bg5 {[%clk 0:00:18.7]} 35...
Qd5+ {[%clk 0:00:19.2]} 36. Kf2 {[%clk 0:00:16.7]} 36... Qxe5 {[%clk 0:00:19.3]}
37. Rh3 {[%clk 0:00:16]} 37... Qc5+ {[%clk 0:00:18.5]} 38. Ke2 {[%clk
0:00:14.9]} 38... Qc4+ {[%clk 0:00:17.7]} 39. Kd2 {[%clk 0:00:14.1]} 39... Qd5+
{[%clk 0:00:13.1]} 40. Kc2 {[%clk 0:00:13.8]} 40... Qe4+ {[%clk 0:00:08.7]} 41.
Kb3 {[%clk 0:00:13.3]} 41... Rg7 {[%clk 0:00:06.8]} 42. Rf8+ {[%clk 0:00:11.7]}
42... Kh7 {[%clk 0:00:04.3]} 43. Rhf3 {[%clk 0:00:12.6]} 43... Qd5+ {[%clk
0:00:02.8]} 44. Kc2 {[%clk 0:00:12.5]} 44... Rd7 {[%clk 0:00:02.5]} 45. a4
{[%clk 0:00:09.4]} 45... Qd1# {[%clk 0:00:02.3]} 0-1

[Event "*** Titled Tuesday Blitz"]
[Site "Chess.com"]
[Date "2020.04.07"]
[Round "2"]
[White "elohunter1999"]
[Black "SidArun"]
[Result "1-0"]
[WhiteElo "2464"]
[BlackElo "2209"]
[TimeControl "180+1"]
[EndTime "13:19:56 PDT"]
[Termination "elohunter1999 won by checkmate"]

1. e4 {[%clk 0:03:00.9]} 1... c6 {[%clk 0:02:59.8]} 2. d4 {[%clk 0:03:00.1]}
2... d5 {[%clk 0:03:00.1]} 3. e5 {[%clk 0:03:00.7]} 3... Bf5 {[%clk 0:02:59.8]}
4. Nf3 {[%clk 0:03:01]} 4... e6 {[%clk 0:03:00.1]} 5. Be2 {[%clk 0:03:01.6]}
5... c5 {[%clk 0:03:00.4]} 6. Be3 {[%clk 0:03:00.9]} 6... cxd4 {[%clk
0:02:56.8]} 7. Nxd4 {[%clk 0:03:01.4]} 7... Ne7 {[%clk 0:02:57]} 8. O-O {[%clk
0:03:00.4]} 8... Nbc6 {[%clk 0:02:57]} 9. Bb5 {[%clk 0:02:59.5]} 9... a6 {[%clk
0:02:50.5]} 10. Bxc6+ {[%clk 0:02:58.7]} 10... bxc6 {[%clk 0:02:50.7]} 11. c4
{[%clk 0:02:57.6]} 11... c5 {[%clk 0:02:44.2]} 12. Qa4+ {[%clk 0:02:25.6]} 12...
Qd7 {[%clk 0:02:43.8]} 13. Qxd7+ {[%clk 0:02:24.1]} 13... Kxd7 {[%clk
0:02:43.7]} 14. Nb3 {[%clk 0:02:22.9]} 14... Nc6 {[%clk 0:02:12.5]} 15. cxd5
{[%clk 0:02:20.1]} 15... exd5 {[%clk 0:02:11.4]} 16. Bxc5 {[%clk 0:02:17.2]}
16... Nxe5 {[%clk 0:02:08.3]} 17. Nc3 {[%clk 0:02:12.5]} 17... Bxc5 {[%clk
0:01:54.2]} 18. Nxc5+ {[%clk 0:02:11.4]} 18... Kc6 {[%clk 0:01:54.5]} 19. Nb3
{[%clk 0:02:11.9]} 19... Be6 {[%clk 0:01:48.3]} 20. f4 {[%clk 0:02:00.8]} 20...
Nd3 {[%clk 0:01:35.9]} 21. f5 {[%clk 0:01:56.7]} 21... Bd7 {[%clk 0:01:32.8]}
22. Rad1 {[%clk 0:01:46.4]} 22... Nxb2 {[%clk 0:01:27]} 23. Rxd5 {[%clk
0:01:45.4]} 23... Na4 {[%clk 0:01:21.6]} 24. Nd4+ {[%clk 0:01:04.7]} 24... Kc7
{[%clk 0:01:18]} 25. Rxd7+ {[%clk 0:00:54.6]} 25... Kxd7 {[%clk 0:01:16.9]} 26.
Nxa4 {[%clk 0:00:55.2]} 26... Rab8 {[%clk 0:01:14.6]} 27. Rd1 {[%clk 0:00:50.4]}
27... Rhc8 {[%clk 0:01:10.5]} 28. Nb3+ {[%clk 0:00:36.6]} 28... Ke7 {[%clk
0:01:09.2]} 29. Nac5 {[%clk 0:00:36.4]} 29... a5 {[%clk 0:01:05.1]} 30. Rd7+
{[%clk 0:00:31.3]} 30... Ke8 {[%clk 0:01:05.3]} 31. Ra7 {[%clk 0:00:29.1]} 31...
Rb5 {[%clk 0:00:55]} 32. Ne4 {[%clk 0:00:27.7]} 32... Rd5 {[%clk 0:00:53.6]} 33.
f6 {[%clk 0:00:26.7]} 33... g6 {[%clk 0:00:49.8]} 34. Rxa5 {[%clk 0:00:26.1]}
34... Rxa5 {[%clk 0:00:47.7]} 35. Nxa5 {[%clk 0:00:26.3]} 35... Ra8 {[%clk
0:00:47.1]} 36. Nd6+ {[%clk 0:00:26]} 36... Kf8 {[%clk 0:00:42.6]} 37. Ndc4
{[%clk 0:00:24.1]} 37... Ke8 {[%clk 0:00:43]} 38. Kf2 {[%clk 0:00:24]} 38... Ra6
{[%clk 0:00:41]} 39. Ke3 {[%clk 0:00:24]} 39... Rxf6 {[%clk 0:00:40.8]} 40. a4
{[%clk 0:00:23.6]} 40... Kd7 {[%clk 0:00:41.1]} 41. Nb3 {[%clk 0:00:23.2]} 41...
Kc6 {[%clk 0:00:39.4]} 42. Kd4 {[%clk 0:00:20.9]} 42... Rf4+ {[%clk 0:00:38.1]}
43. Kc3 {[%clk 0:00:20.9]} 43... Rf2 {[%clk 0:00:37.7]} 44. Kb4 {[%clk
0:00:20.4]} 44... Rxg2 {[%clk 0:00:37.2]} 45. Nd4+ {[%clk 0:00:20.8]} 45... Kd7
{[%clk 0:00:34.8]} 46. a5 {[%clk 0:00:20.4]} 46... Ra2 {[%clk 0:00:31.3]} 47.
Na3 {[%clk 0:00:18.4]} 47... Kc7 {[%clk 0:00:27.2]} 48. Ndb5+ {[%clk 0:00:18.1]}
48... Kc6 {[%clk 0:00:26]} 49. h4 {[%clk 0:00:18.4]} 49... Rb2+ {[%clk
0:00:24.4]} 50. Kc4 {[%clk 0:00:17.2]} 50... f5 {[%clk 0:00:22.2]} 51. a6 {[%clk
0:00:17.2]} 51... Kb6 {[%clk 0:00:21.5]} 52. a7 {[%clk 0:00:17]} 52... Kb7
{[%clk 0:00:20.3]} 53. Kc5 {[%clk 0:00:17.5]} 53... Ra2 {[%clk 0:00:18.3]} 54.
Nc4 {[%clk 0:00:17.1]} 54... f4 {[%clk 0:00:16.4]} 55. Ncd6+ {[%clk 0:00:17]}
55... Ka8 {[%clk 0:00:15.8]} 56. Kb6 {[%clk 0:00:17.5]} 56... Rxa7 {[%clk
0:00:15.4]} 57. Nxa7 {[%clk 0:00:18]} 57... f3 {[%clk 0:00:15.8]} 58. Nc6 {[%clk
0:00:17.2]} 58... h6 {[%clk 0:00:15.7]} 59. Ne8 {[%clk 0:00:17.7]} 59... g5
{[%clk 0:00:15.7]} 60. Nc7# {[%clk 0:00:18.2]} 1-0

[Event "*** Titled Tuesday Blitz"]
[Site "Chess.com"]
[Date "2020.04.07"]
[Round "2"]
[White "bestluluNA"]
[Black "GM-AndreyOrlov"]
[Result "0-1"]
[WhiteElo "2523"]
[BlackElo "2819"]
[TimeControl "180+1"]
[EndTime "13:19:57 PDT"]
[Termination "GM-AndreyOrlov won on time"]

1. d4 {[%clk 0:03:00.9]} 1... d6 {[%clk 0:03:00]} 2. c4 {[%clk 0:03:01.5]} 2...
e5 {[%clk 0:02:59.9]} 3. Nc3 {[%clk 0:03:01.7]} 3... exd4 {[%clk 0:02:59.1]} 4.
Qxd4 {[%clk 0:03:02.6]} 4... Nc6 {[%clk 0:02:59.6]} 5. Qd2 {[%clk 0:03:02.8]}
5... Be6 {[%clk 0:02:57.8]} 6. e4 {[%clk 0:02:59.8]} 6... g6 {[%clk 0:02:56.2]}
7. b3 {[%clk 0:02:58.8]} 7... Bg7 {[%clk 0:02:56.2]} 8. Bb2 {[%clk 0:02:58.9]}
8... Nf6 {[%clk 0:02:56.8]} 9. g3 {[%clk 0:02:52]} 9... O-O {[%clk 0:02:55]} 10.
Bg2 {[%clk 0:02:52.4]} 10... a5 {[%clk 0:02:53.7]} 11. Nge2 {[%clk 0:02:52.4]}
11... a4 {[%clk 0:02:53.6]} 12. O-O {[%clk 0:02:30.9]} 12... a3 {[%clk
0:02:52.1]} 13. Bc1 {[%clk 0:02:30.8]} 13... Re8 {[%clk 0:02:43.5]} 14. Rb1
{[%clk 0:02:30.8]} 14... Bd7 {[%clk 0:02:35.4]} 15. f3 {[%clk 0:02:26.3]} 15...
Ne5 {[%clk 0:02:33.4]} 16. Qc2 {[%clk 0:02:13.7]} 16... Bc6 {[%clk 0:02:30.8]}
17. Rd1 {[%clk 0:02:09.2]} 17... Qc8 {[%clk 0:02:30.5]} 18. Be3 {[%clk
0:02:00.2]} 18... h5 {[%clk 0:02:23.6]} 19. Nd5 {[%clk 0:01:56.7]} 19... h4
{[%clk 0:01:54.1]} 20. Bg5 {[%clk 0:01:29]} 20... Bxd5 {[%clk 0:01:47.9]} 21.
cxd5 {[%clk 0:01:29.3]} 21... hxg3 {[%clk 0:01:46.9]} 22. hxg3 {[%clk
0:01:30.2]} 22... Qd7 {[%clk 0:01:20.3]} 23. Rbc1 {[%clk 0:01:30]} 23... Rac8
{[%clk 0:01:19.5]} 24. Qd2 {[%clk 0:01:26.6]} 24... Qb5 {[%clk 0:01:12.2]} 25.
Nd4 {[%clk 0:01:22.8]} 25... Qa6 {[%clk 0:01:12.1]} 26. Bh3 {[%clk 0:00:54.2]}
26... c5 {[%clk 0:01:11.2]} 27. Bxc8 {[%clk 0:00:39.2]} 27... cxd4 {[%clk
0:01:09.2]} 28. Kg2 {[%clk 0:00:37.8]} 28... Nxf3 {[%clk 0:01:03.8]} 29. Kxf3
{[%clk 0:00:33.8]} 29... Nxe4 {[%clk 0:01:04]} 30. Qf4 {[%clk 0:00:31.7]} 30...
Nxg5+ {[%clk 0:01:03.3]} 31. Kg2 {[%clk 0:00:19.5]} 31... Qe2+ {[%clk
0:00:56.8]} 32. Qf2 {[%clk 0:00:17.6]} 32... Qe4+ {[%clk 0:00:56.6]} 33. Kh2
{[%clk 0:00:15.7]} 33... Nf3+ {[%clk 0:00:55.3]} 34. Kh3 {[%clk 0:00:16.2]}
34... Re5 {[%clk 0:00:45.7]} 35. g4 {[%clk 0:00:12.9]} 35... Rxd5 {[%clk
0:00:39]} 36. Bxb7 {[%clk 0:00:11.1]} 36... Ng5+ {[%clk 0:00:38.2]} 37. Kh4
{[%clk 0:00:07.5]} 37... Nf3+ {[%clk 0:00:29.5]} 38. Kh3 {[%clk 0:00:08]} 38...
Bf6 {[%clk 0:00:18.3]} 39. Bxd5 {[%clk 0:00:06.1]} 39... Ng5+ {[%clk 0:00:18.6]}
40. Kg3 {[%clk 0:00:05.6]} 40... Be5+ {[%clk 0:00:15.5]} 41. Kh4 {[%clk
0:00:05.9]} 41... Qxd5 {[%clk 0:00:15.9]} 42. Rc8+ {[%clk 0:00:04]} 42... Kg7
{[%clk 0:00:15.4]} 43. Rd3 {[%clk 0:00:03.3]} 43... Bf6 {[%clk 0:00:14]} 44. Kg3
{[%clk 0:00:03.5]} 44... Qe5+ {[%clk 0:00:14.1]} 45. Qf4 {[%clk 0:00:03.3]}
45... Qe1+ {[%clk 0:00:14.2]} 46. Kg2 {[%clk 0:00:01.7]} 46... Qe2+ {[%clk
0:00:14]} 47. Qf2 {[%clk 0:00:02]} 47... Qxd3 {[%clk 0:00:13.6]} 48. Rc2 {[%clk
0:00:01.3]} 48... Qe4+ {[%clk 0:00:13.6]} 49. Kf1 {[%clk 0:00:01.5]} 49... d3
{[%clk 0:00:14]} 50. Rd2 {[%clk 0:00:01.9]} 50... Bd4 {[%clk 0:00:13.1]} 51. Qg2
{[%clk 0:00:02.5]} 51... Qf4+ {[%clk 0:00:12.8]} 52. Ke1 {[%clk 0:00:03.1]}
52... Bc3 {[%clk 0:00:13.1]} 53. Kd1 {[%clk 0:00:03.2]} 53... Qxd2+ {[%clk
0:00:13.1]} 54. Qxd2 {[%clk 0:00:04.1]} 54... Bxd2 {[%clk 0:00:13.9]} 55. Kxd2
{[%clk 0:00:04.3]} 55... Kf6 {[%clk 0:00:12.1]} 56. Kxd3 {[%clk 0:00:05.2]}
56... Ke5 {[%clk 0:00:12.6]} 0-1

[Event "*** Titled Tuesday Blitz"]
[Site "Chess.com"]
[Date "2020.04.07"]
[Round "2"]
[White "Borsuk_Konstantin"]
[Black "meridaandres"]
[Result "0-1"]
[WhiteElo "2476"]
[BlackElo "2279"]
[TimeControl "180+1"]
[EndTime "13:19:57 PDT"]
[Termination "meridaandres won on time"]

1. d4 {[%clk 0:03:00.9]} 1... Nf6 {[%clk 0:03:00]} 2. c4 {[%clk 0:03:01.5]} 2...
g6 {[%clk 0:03:00.4]} 3. Nc3 {[%clk 0:03:02.1]} 3... Bg7 {[%clk 0:03:00.6]} 4.
e4 {[%clk 0:03:01.3]} 4... d6 {[%clk 0:03:01.5]} 5. f3 {[%clk 0:03:01.5]} 5...
O-O {[%clk 0:03:01.1]} 6. Be3 {[%clk 0:03:01.7]} 6... Nbd7 {[%clk 0:03:00.3]} 7.
Qd2 {[%clk 0:02:58]} 7... c5 {[%clk 0:03:00.8]} 8. Nge2 {[%clk 0:02:53.2]} 8...
Qa5 {[%clk 0:02:56.8]} 9. Nc1 {[%clk 0:02:42.2]} 9... a6 {[%clk 0:02:55.8]} 10.
Nb3 {[%clk 0:02:41.2]} 10... Qb4 {[%clk 0:02:46.5]} 11. Qc2 {[%clk 0:02:02.1]}
11... Qb6 {[%clk 0:02:08.4]} 12. dxc5 {[%clk 0:01:46.3]} 12... Nxc5 {[%clk
0:01:46.9]} 13. Nxc5 {[%clk 0:01:44.6]} 13... dxc5 {[%clk 0:01:46.7]} 14. Na4
{[%clk 0:01:42.2]} 14... Qa5+ {[%clk 0:01:42]} 15. Bd2 {[%clk 0:01:40.9]} 15...
Qc7 {[%clk 0:01:39.5]} 16. Nc3 {[%clk 0:01:32.7]} 16... e6 {[%clk 0:01:28.6]}
17. Be2 {[%clk 0:01:28.8]} 17... Bd7 {[%clk 0:01:25.8]} 18. O-O {[%clk
0:01:25.7]} 18... Rfd8 {[%clk 0:01:15.3]} 19. f4 {[%clk 0:01:16.1]} 19... Bc6
{[%clk 0:01:10.8]} 20. Be3 {[%clk 0:01:14.5]} 20... b6 {[%clk 0:00:52]} 21. e5
{[%clk 0:01:14.2]} 21... Nd7 {[%clk 0:00:46.6]} 22. Ne4 {[%clk 0:01:12.1]} 22...
Bxe4 {[%clk 0:00:44.5]} 23. Qxe4 {[%clk 0:01:11.1]} 23... Ra7 {[%clk 0:00:41.3]}
24. h4 {[%clk 0:01:02.4]} 24... h5 {[%clk 0:00:39.1]} 25. Rad1 {[%clk
0:00:56.4]} 25... Nb8 {[%clk 0:00:38.8]} 26. Bf3 {[%clk 0:00:55.1]} 26... Qc8
{[%clk 0:00:34.5]} 27. b4 {[%clk 0:00:49.8]} 27... Rad7 {[%clk 0:00:32]} 28.
bxc5 {[%clk 0:00:41.5]} 28... bxc5 {[%clk 0:00:32.9]} 29. Rxd7 {[%clk
0:00:36.1]} 29... Nxd7 {[%clk 0:00:32.8]} 30. Rb1 {[%clk 0:00:35.1]} 30... Qc7
{[%clk 0:00:30.2]} 31. Qc6 {[%clk 0:00:30.6]} 31... Qa5 {[%clk 0:00:26.9]} 32.
Rd1 {[%clk 0:00:28.4]} 32... Nf8 {[%clk 0:00:24.9]} 33. Rxd8 {[%clk 0:00:27.2]}
33... Qxd8 {[%clk 0:00:24.2]} 34. Qxc5 {[%clk 0:00:23.5]} 34... Qxh4 {[%clk
0:00:24.5]} 35. Kf1 {[%clk 0:00:15.9]} 35... Qh1+ {[%clk 0:00:22.8]} 36. Bg1
{[%clk 0:00:15.1]} 36... h4 {[%clk 0:00:23.2]} 37. Qf2 {[%clk 0:00:13.5]} 37...
Bh6 {[%clk 0:00:21]} 38. Be4 {[%clk 0:00:12.9]} 38... h3 {[%clk 0:00:19]} 39.
Qg3 {[%clk 0:00:12.5]} 39... hxg2+ {[%clk 0:00:15.8]} 40. Bxg2 {[%clk
0:00:08.9]} 40... Qh5 {[%clk 0:00:16.4]} 41. Bf3 {[%clk 0:00:05.5]} 41... Qf5
{[%clk 0:00:16.6]} 42. Be3 {[%clk 0:00:05.7]} 42... Qd3+ {[%clk 0:00:15.7]} 43.
Kf2 {[%clk 0:00:05.6]} 43... Qxc4 {[%clk 0:00:15.9]} 44. Be2 {[%clk 0:00:05.4]}
44... Qe4 {[%clk 0:00:14.7]} 45. Qf3 {[%clk 0:00:05.1]} 45... Qc2 {[%clk
0:00:13.7]} 46. a3 {[%clk 0:00:04.6]} 46... Qa2 {[%clk 0:00:13.4]} 47. Bc5
{[%clk 0:00:04.1]} 47... Qb2 {[%clk 0:00:10.8]} 48. Qa8 {[%clk 0:00:02.2]} 48...
Qc2 {[%clk 0:00:07.1]} 49. Be3 {[%clk 0:00:02]} 49... Qf5 {[%clk 0:00:06.4]} 50.
Qf3 {[%clk 0:00:01.1]} 50... Qc2 {[%clk 0:00:05.5]} 51. a4 {[%clk 0:00:01.4]}
51... Qxa4 {[%clk 0:00:05.3]} 0-1